bitfinex/quotes_SOLUSD_20251202
["timestamp","ask_amount","ask_price","bid_price","bid_amount"]
[1764642030602,0.66,128.08,128.05,8.4994191]
[1764642030996,0.66,128.08,128.05,7.8094191]
[1764642031219,8.46765028,128.08,128.04,8.4998986]
[1764642031821,0.71,128.07,128.04,8.4998986]
[1764642032020,0.71,128.07,128.04,7.8098986]
[1764642032524,0.71,128.07,128.02,8.50076343]
[1764642032525,11.05032357,128.07,128.02,8.50076343]
[1764642032711,11.05032357,128.07,128.02,28.02896214]
[1764642032917,0.71,128.06,128.02,28.02896214]
[1764642033117,8.68,128.05,128.02,28.02896214]
[1764642033417,8.68,128.05,128.02,7.81076343]
[1764642033619,8.68,128.05,128.03,0.69]
[1764642033817,9.39,128.05,128.02,8.50076343]
[1764642033995,8.68,128.05,128.02,7.81076343]
[1764642034202,9.39,128.05,128.02,8.50076343]
[1764642035305,9.39,128.05,128.02,7.81076343]
[1764642035501,0.71,128.04,128.01,8.50165886]
[1764642035714,9.39,128.05,128.01,24.12052286]
[1764642036027,9.39,128.05,128.02,0.69]
[1764642036205,9.39,128.05,128.03,7.81066937]
[1764642036604,8.68,128.05,128.02,7.8110561]
[1764642036804,9.39,128.05,128.02,7.8110561]
[1764642037401,9.39,128.05,128.02,8.5010561]
[1764642038223,0.71,128.08,128.03,3.22208397]
[1764642038529,8.66,128.06,128.03,3.22208397]
[1764642038728,8.66,128.06,128.04,0.69]
[1764642039209,0.71,128.05,128.02,7.8110561]
[1764642040210,8.66,128.06,128.03,0.69]
[1764642040418,8.66,128.06,128.03,3.22208397]
[1764642040604,8.66,128.06,128.04,0.69]
[1764642041234,7.80682626,128.1,128.05,18.84094797]
[1764642041411,8.68,128.11,128.08,2.53208397]
[1764642041728,3.22208397,128.14,128.08,2.53208397]
[1764642041930,8.68,128.13,128.09,3.21208397]
[1764642042114,8.68,128.13,128.1,7.80640124]
[1764642042316,8.68,128.13,128.1,11.01848521]
[1764642042620,8.68,128.13,128.11,0.68]
[1764642043408,8.68,128.13,128.11,8.48534734]
[1764642043617,0.79,128.17,128.11,27.99982708]
[1764642043820,0.1,128.17,128.13,2.53208397]
[1764642044015,0.1,128.17,128.12,3.21208397]
[1764642044433,0.1,128.17,128.13,0.68]
[1764642045026,0.79,128.17,128.13,3.21208397]
[1764642045334,0.79,128.17,128.13,0.68]
[1764642045539,0.79,128.17,128.14,7.80396441]
[1764642045743,3.32208397,128.17,128.14,7.80396441]
[1764642045917,0.69,128.16,128.14,7.80396441]
[1764642046122,0.79,128.17,128.14,7.80396441]
[1764642046317,0.1,128.17,128.14,7.80396441]
[1764642046524,3.32208397,128.17,128.14,7.80396441]
[1764642046732,0.69,128.16,128.13,7.80457348]
[1764642047529,0.1,128.17,128.13,11.01665745]
[1764642047740,0.79,128.17,128.13,8.48457348]
[1764642047934,3.32208397,128.17,128.13,8.48457348]
[1764642048339,2.53208397,128.15,128.11,27.31973052]
[1764642048543,2.53208397,128.15,128.11,7.80525078]
[1764642048544,8.66,128.14,128.11,7.80525078]
[1764642048740,9.35,128.14,128.11,7.80525078]
[1764642048931,0.69,128.13,128.1,8.48639763]
[1764642049338,0.69,128.13,128.1,7.80639763]
[1764642049740,0.69,128.13,128.1,8.48639763]
[1764642050361,8.66,128.14,128.11,0.68]
[1764642050527,8.66,128.15,128.11,3.21208397]
[1764642051049,8.66,128.15,128.12,0.68]
[1764642051548,8.66,128.15,128.12,11.01693681]
[1764642051729,0.79,128.17,128.12,11.01693681]
[1764642051936,8.66,128.16,128.13,3.21208397]
[1764642052127,8.66,128.16,128.13,0.68]
[1764642052440,0.1,128.17,128.14,3.21208397]
[1764642052822,0.1,128.17,128.14,2.53208397]
[1764642053022,0.1,128.17,128.16,2.53208397]
[1764642053425,0.1,128.17,128.16,10.33483053]
[1764642053729,0.1,128.17,128.16,8.48274656]
[1764642053936,0.1,128.17,128.16,11.01483053]
[1764642054332,0.1,128.17,128.16,12.43282745]
[1764642055225,0.1,128.17,128.16,7.80274656]
[1764642055627,0.1,128.17,128.15,28.06215486]
[1764642055938,0.79,128.17,128.12,36.50102753]
[1764642056126,0.79,128.17,128.13,3.95008089]
[1764642056326,0.79,128.17,128.13,4.63008089]
[1764642056542,0.79,128.17,128.14,0.68]
[1764642056851,0.79,128.17,128.13,31.94608807]
[1764642057734,0.79,128.17,128.13,12.43465437]
[1764642057940,3.95008089,128.16,128.11,0.68]
[1764642058134,3.95008089,128.15,128.11,7.80566847]
[1764642058336,8.66,128.14,128.11,7.80566847]
[1764642058551,9.35,128.14,128.11,7.80566847]
[1764642058747,0.69,128.13,128.1,18.82207345]
[1764642058949,0.69,128.13,128.09,0.68]
[1764642059130,11.70587785,128.13,128.08,11.01587785]
[1764642059533,0.69,128.12,128.08,11.69587785]
[1764642059739,0.69,128.12,128.09,7.80701069]
[1764642060544,0.69,128.12,128.08,0.68]
[1764642060545,11.70587785,128.12,128.08,7.80740033]
[1764642060952,0.69,128.11,128.08,7.80740033]
[1764642061159,8.66,128.1,128.08,7.80740033]
[1764642061356,8.49453743,128.14,128.08,27.32645092]
[1764642061548,8.66,128.13,128.09,11.69587785]
[1764642062066,0.69,128.12,128.1,7.80640124]
[1764642062242,11.70587785,128.12,128.07,16.308864]
[1764642062443,11.01587785,128.11,128.07,7.80822987]
[1764642062643,11.70587785,128.11,128.07,7.80822987]
[1764642062843,0.69,128.1,128.07,7.80822987]
[1764642063866,8.66,128.09,128.07,7.80822987]
[1764642064368,9.35,128.09,128.07,7.80822987]
[1764642064740,8.66,128.09,128.07,7.80822987]
[1764642065167,0.69,128.1,128.07,7.80822987]
[1764642065468,11.70587785,128.1,128.07,7.80822987]
[1764642065642,8.66,128.09,128.06,7.8088396]
[1764642065847,9.35,128.09,128.06,7.8088396]
[1764642067879,0.69,128.08,128.06,7.8088396]
[1764642070173,8.66,128.09,128.06,7.8088396]
[1764642070357,9.35,128.09,128.06,8.4888396]
[1764642070871,9.35,128.09,128.06,7.8088396]
[1764642071368,11.71587785,128.08,128.04,7.80985752]
[1764642071570,11.01587785,128.07,128.03,7.81045901]
[1764642071753,8.66,128.06,128.03,7.81045901]
[1764642071960,9.36,128.06,128.03,7.81045901]
[1764642072259,8.66,128.06,128.04,0.7]
[1764642072467,8.66,128.06,128.05,7.80944943]
[1764642073243,8.66,128.06,128.03,19.52628929]
[1764642073447,8.66,128.06,128.01,19.5288514]
[1764642073448,0.7,128.05,128.01,7.81169461]
[1764642073674,0.7,128.05,128.01,8.51169461]
[1764642073845,0.7,128.05,128.02,0.7]
[1764642074453,0.7,128.05,128.02,8.51074882]
[1764642074855,0.7,128.05,128.02,7.81074882]
[1764642075957,19.52569668,128.05,128.0,8.01236462]
[1764642076270,8.66,128.04,128.02,11.01587785]
[1764642076464,8.66,128.04,128.03,7.81066937]
[1764642076670,8.66,128.04,128.03,19.52654722]
[1764642076864,0.7,128.09,128.03,39.05322065]
[1764642077055,8.68,128.08,128.05,11.01587785]
[1764642077560,8.68,128.08,128.05,11.71587785]
[1764642078349,8.68,128.08,128.06,11.71587785]
[1764642078566,8.68,128.08,128.06,19.52411982]
[1764642079458,8.68,128.08,128.06,8.50824197]
[1764642079656,8.68,128.08,128.06,19.52411982]
[1764642080586,0.7,128.1,128.07,12.46430015]
[1764642081082,16.46586878,128.11,128.09,3.95658092]
[1764642081083,8.66,128.11,128.09,3.95658092]
[1764642081255,8.50373191,128.15,128.1,4.65658092]
[1764642081456,8.68,128.14,128.1,4.65658092]
[1764642081775,3.95658092,128.13,128.08,3.95658092]
[1764642081978,4.65658092,128.13,128.08,3.95658092]
[1764642082156,0.7,128.12,128.07,31.98487483]
[1764642082350,8.68,128.11,128.07,31.98487483]
[1764642082550,8.68,128.11,128.09,7.80701069]
[1764642082974,9.38,128.11,128.09,7.80701069]
[1764642084659,8.68,128.11,128.09,7.80701069]
[1764642085660,8.68,128.11,128.1,0.7]
[1764642086272,8.68,128.11,128.09,12.46359161]
[1764642086469,0.7,128.13,128.09,12.46359161]
[1764642086674,8.68,128.13,128.1,4.65658092]
[1764642087181,9.38,128.13,128.1,0.7]
[1764642088081,9.38,128.13,128.11,7.80579189]
[1764642089554,0.7,128.12,128.1,7.80640124]
[1764642090377,9.38,128.13,128.1,7.80640124]
[1764642091097,9.4,128.13,128.1,7.80640124]
[1764642091579,0.72,128.12,128.1,7.80640124]
[1764642091786,0.72,128.12,128.09,7.80680868]
[1764642091983,0.72,128.12,128.08,7.80749066]
[1764642092161,0.72,128.12,128.08,12.45407158]
[1764642092353,0.72,128.12,128.08,31.97312217]
[1764642092559,0.72,128.12,128.09,0.69]
[1764642092757,8.66,128.13,128.1,3.95658092]
[1764642093058,9.38,128.13,128.11,7.80579189]
[1764642093953,8.66,128.13,128.08,1.5]
[1764642094160,4.67658092,128.12,128.08,1.5]
[1764642094460,4.67658092,128.12,128.07,0.69]
[1764642094461,3.95658092,128.1,128.05,16.998864]
[1764642094783,8.66,128.09,128.06,7.80861062]
[1764642095169,9.38,128.09,128.06,7.80861062]
[1764642095568,9.38,128.09,128.06,8.49861062]
[1764642095787,0.72,128.08,128.06,7.80861062]
[1764642096083,9.38,128.09,128.06,27.33070963]
[1764642096279,9.38,128.09,128.05,28.02301914]
[1764642099790,9.38,128.09,128.06,0.69]
[1764642100201,9.38,128.09,128.05,28.02301914]
[1764642100397,0.72,128.08,128.05,28.02301914]
[1764642100995,4.67658092,128.08,128.05,27.33301914]
[1764642101495,0.72,128.07,128.05,27.33301914]
[1764642105903,0.72,128.09,128.06,4.62658092]
[1764642106276,0.72,128.09,128.06,0.67]
[1764642106899,0.72,128.09,128.07,7.80822987]
[1764642107106,8.52604349,128.11,128.07,7.80822987]
[1764642107300,9.38,128.1,128.07,8.47822987]
[1764642107876,4.67658092,128.09,128.05,9.30906336]
[1764642108109,3.95658092,128.08,128.05,9.30906336]
[1764642108291,3.95658092,128.07,128.03,7.8102357]
[1764642108485,8.66,128.06,128.03,7.8102357]
[1764642108808,13.33658092,128.06,128.03,7.8102357]
[1764642109011,0.72,128.05,128.02,7.81127948]
[1764642109310,9.38,128.06,128.02,28.00947819]
[1764642109493,9.38,128.06,128.03,0.67]
[1764642113508,0.72,128.05,128.03,7.81066937]
[1764642114908,8.52981409,128.05,128.0,8.01247406]
[1764642115096,0.72,128.04,128.01,0.67]
[1764642115299,8.66,128.03,128.01,0.67]
[1764642115895,9.38,128.03,128.0,28.21372406]
[1764642117223,8.66,128.03,128.0,27.54372406]
[1764642117549,0.72,128.05,128.01,3.20477198]
[1764642117823,0.72,128.05,128.01,0.67]
[1764642117989,0.72,128.05,128.02,0.67]
[1764642118423,2.53477198,128.04,128.0,8.01247406]
[1764642118817,0.72,128.03,128.0,8.68247406]
[1764642119410,3.25477198,128.05,128.01,0.67]
[1764642119590,0.72,128.05,128.01,0.67]
[1764642119811,0.72,128.05,128.01,3.20477198]
[1764642120088,0.72,128.05,128.02,0.67]
[1764642120629,8.66,128.06,128.02,0.67]
[1764642120795,10.34258596,128.08,128.02,3.20477198]
[1764642121130,8.66,128.07,128.02,3.20477198]
[1764642121422,8.66,128.07,128.04,7.81005935]
[1764642121799,8.66,128.07,128.04,8.48005935]
[1764642122000,11.91477198,128.07,128.04,0.67]
[1764642122225,11.19477198,128.07,128.04,0.67]
[1764642122400,11.91477198,128.07,128.04,0.67]
[1764642122595,19.72304921,128.07,128.04,0.67]
[1764642122928,0.72,128.06,128.03,7.81059715]
[1764642123092,0.72,128.06,128.03,8.48059715]
[1764642124397,3.25477198,128.06,128.03,8.48059715]
[1764642124802,11.19477198,128.07,128.04,0.67]
[1764642125006,9.38,128.07,128.04,0.67]
[1764642125307,8.66,128.07,128.04,0.67]
[1764642126324,9.38,128.07,128.05,7.80944943]
[1764642129727,0.72,128.11,128.06,0.67]
[1764642129911,8.66,128.1,128.06,3.20477198]
[1764642130420,8.66,128.1,128.07,0.67]
[1764642130820,3.25477198,128.09,128.03,46.18097878]
[1764642130993,3.25477198,128.09,128.04,0.67]
[1764642131196,0.72,128.08,128.04,0.67]
[1764642131607,0.72,128.08,128.05,7.80944943]
[1764642131808,0.72,128.08,128.05,8.50944943]
[1764642135214,0.72,128.08,128.05,28.03307301]
[1764642135529,0.69,128.11,128.06,3.23477198]
[1764642135734,0.69,128.11,128.07,3.23477198]
[1764642135735,9.35,128.11,128.07,3.23477198]
[1764642136326,9.35,128.11,128.08,7.80762023]
[1764642136534,0.69,128.1,128.08,7.80762023]
[1764642136709,8.66,128.11,128.08,29.8614428]
[1764642137027,0.69,128.15,128.1,2.53477198]
[1764642137231,9.35,128.15,128.11,3.23477198]
[1764642137417,9.35,128.15,128.11,0.7]
[1764642137615,0.69,128.14,128.11,0.7]
[1764642137818,0.69,128.14,128.11,3.23477198]
[1764642138032,0.69,128.14,128.1,2.53477198]
[1764642138350,0.69,128.14,128.09,3.23477198]
[1764642138529,2.53477198,128.13,128.1,7.80640124]
[1764642139035,0.69,128.12,128.1,7.80640124]
[1764642139226,8.66,128.11,128.09,7.80694152]
[1764642139529,0.69,128.1,128.09,7.80694152]
[1764642139705,0.69,128.1,128.06,22.75601226]
[1764642139910,0.69,128.1,128.07,0.7]
[1764642140432,0.69,128.1,128.07,28.02880455]
[1764642142233,0.69,128.1,128.07,7.80822987]
[1764642142438,3.22477198,128.1,128.07,7.80822987]
[1764642142635,0.69,128.1,128.07,7.80822987]
[1764642142823,0.69,128.1,128.07,8.50822987]
[1764642143541,0.69,128.1,128.07,7.80822987]
[1764642143728,3.22477198,128.1,128.07,7.80822987]
[1764642144042,3.22477198,128.1,128.06,7.8087377]
[1764642144043,2.53477198,128.08,128.06,7.8087377]
[1764642144233,8.66,128.07,128.03,20.22634462]
[1764642144532,9.35,128.07,128.03,20.22634462]
[1764642144833,0.69,128.06,128.03,20.22634462]
[1764642145340,9.35,128.07,128.04,7.81005935]
[1764642145740,0.69,128.06,128.04,7.81005935]
[1764642145938,2.53477198,128.05,128.01,7.81188969]
[1764642146320,0.69,128.04,128.01,8.51188969]
[1764642146521,0.69,128.04,128.01,7.81188969]
[1764642146841,0.69,128.04,128.01,8.51188969]
[1764642147027,8.66,128.03,128.01,7.81188969]
[1764642147226,0.69,128.02,128.01,7.81188969]
[1764642148838,8.66,128.03,128.01,7.81188969]
[1764642149142,9.35,128.03,128.01,7.81188969]
[1764642149340,8.66,128.03,128.01,7.81188969]
[1764642149546,0.69,128.02,128.0,8.01238807]
[1764642150238,11.19477198,128.03,128.0,8.01238807]
[1764642150239,9.35,128.03,128.0,8.01238807]
[1764642150429,11.19477198,128.03,128.0,8.01238807]
[1764642150630,8.66,128.03,128.0,8.66238807]
[1764642150837,8.66,128.03,128.01,0.65]
[1764642152150,8.66,128.03,128.02,7.81127948]
[1764642153432,8.66,128.03,128.01,7.81163192]
[1764642153946,8.66,128.03,128.0,0.2]
[1764642154153,3.21477198,128.02,128.0,0.2]
[1764642154331,11.02616258,128.02,128.0,0.2]
[1764642154532,0.68,128.01,128.0,0.2]
[1764642159951,3.21477198,128.01,128.0,0.2]
[1764642161027,8.66,128.02,128.0,0.85]
[1764642161836,8.66,128.02,128.0,3.38477198]
[1764642162030,8.66,128.02,128.0,0.85]
[1764642162356,8.66,128.02,128.0,8.6624858]
[1764642164631,8.66,128.02,128.0,8.0124858]
[1764642164829,8.66,128.02,128.01,8.53188969]
[1764642165749,8.66,128.02,128.01,7.81188969]
[1764642166061,11.86477198,128.02,128.0,0.2]
[1764642166560,2.53477198,128.01,128.0,0.2]
[1764642166760,7.81044729,128.04,128.0,8.01238278]
[1764642166931,8.66,128.03,128.01,0.72]
[1764642168156,8.66,128.03,128.01,8.53181458]
[1764642168944,8.66,128.03,128.01,7.81181458]
[1764642169144,8.66,128.03,128.02,0.72]
[1764642169344,8.66,128.03,128.01,7.81181458]
[1764642169663,0.67,128.02,128.01,7.81181458]
[1764642169854,9.33,128.03,128.01,7.81181458]
[1764642172667,0.67,128.07,128.02,0.72]
[1764642172853,9.33,128.06,128.02,0.72]
[1764642173366,0.67,128.05,128.02,0.72]
[1764642174669,0.67,128.05,128.03,7.81066937]
[1764642178763,0.67,128.09,128.04,0.72]
[1764642178964,9.33,128.08,128.04,0.72]
[1764642179468,9.33,128.08,128.04,4.6797498]
[1764642179469,0.67,128.07,128.04,4.6797498]
[1764642179666,0.67,128.07,128.04,0.72]
[1764642180371,0.67,128.07,128.03,27.3373428]
[1764642180669,4.6297498,128.07,128.03,28.0573428]
[1764642181070,0.67,128.06,128.03,28.0573428]
[1764642181258,8.66,128.05,128.03,28.0573428]
[1764642182668,8.66,128.05,128.03,27.3373428]
[1764642182872,8.66,128.05,128.04,0.72]
[1764642183077,8.66,128.05,128.04,12.48980915]
[1764642184665,0.67,128.1,128.04,32.01495754]
[1764642184878,0.67,128.1,128.07,3.9597498]
[1764642185182,0.67,128.1,128.05,0.72]
[1764642185358,0.67,128.1,128.07,3.9597498]
[1764642185759,0.67,128.1,128.08,7.80762023]
[1764642187476,8.66,128.11,128.09,4.6797498]
[1764642187680,0.67,128.13,128.09,4.6797498]
[1764642187868,8.66,128.12,128.09,4.6797498]
[1764642188186,8.66,128.12,128.09,0.72]
[1764642188369,9.33,128.12,128.09,4.6797498]
[1764642188885,9.33,128.12,128.1,7.80640124]
[1764642192081,8.66,128.12,128.1,7.80640124]
[1764642192380,0.65,128.16,128.11,4.6797498]
[1764642192562,8.66,128.15,128.11,4.6797498]
[1764642192887,8.66,128.15,128.13,7.80457348]
[1764642193059,9.31,128.15,128.13,7.80457348]
[1764642195571,8.66,128.15,128.11,23.47359087]
[1764642195882,0.65,128.14,128.11,8.52579189]
[1764642197561,9.31,128.15,128.12,0.72]
[1764642198164,8.66,128.15,128.12,4.6797498]
[1764642198406,9.31,128.15,128.12,4.6797498]
[1764642199684,8.66,128.15,128.13,8.52457348]
[1764642199875,8.66,128.16,128.13,12.48432328]
[1764642200069,8.66,128.16,128.14,4.6797498]
[1764642200881,9.31,128.16,128.13,27.31600718]
[1764642201070,9.31,128.16,128.13,28.03600718]
[1764642202159,8.66,128.16,128.14,0.72]
[1764642202366,8.66,128.16,128.14,4.6797498]
[1764642202663,8.66,128.16,128.14,3.9597498]
[1764642202858,8.66,128.16,128.15,0.72]
[1764642203071,8.66,128.16,128.15,4.6797498]
[1764642204070,8.66,128.16,128.15,12.48310524]
[1764642204463,9.31,128.16,128.15,7.80335544]
[1764642205090,8.66,128.16,128.14,7.80396441]
[1764642205276,8.66,128.16,128.14,8.52396441]
[1764642206885,8.66,128.16,128.14,12.48371421]
[1764642207059,8.66,128.16,128.14,28.03387544]
[1764642207262,8.66,128.16,128.14,31.99362524]
[1764642207876,0.1,128.17,128.15,4.6797498]
[1764642208078,0.1,128.17,128.16,3.9597498]
[1764642208274,0.1,128.17,128.16,12.48249636]
[1764642209188,0.1,128.17,128.16,11.76249636]
[1764642209391,0.1,128.17,128.16,7.80274656]
[1764642210194,0.1,128.17,128.16,8.49274656]
[1764642210490,0.1,128.17,128.16,12.45249636]
[1764642211371,0.1,128.17,128.16,7.80274656]
[1764642212190,0.82,128.17,128.15,7.80316574]
[1764642212391,0.1,128.17,128.16,4.6497498]
[1764642212801,0.1,128.17,128.16,0.69]
[1764642213593,0.82,128.17,128.15,7.80316574]
[1764642214181,0.82,128.17,128.14,7.80396441]
[1764642215276,4.7797498,128.17,128.13,9.99452445]
[1764642215477,0.82,128.17,128.13,9.99452445]
[1764642215678,0.72,128.16,128.13,9.99452445]
[1764642216080,0.72,128.16,128.13,29.50595815]
[1764642216586,0.1,128.17,128.14,3.9597498]
[1764642216789,0.72,128.16,128.14,3.9597498]
[1764642216996,0.72,128.16,128.13,33.46570795]
[1764642217597,0.82,128.17,128.14,4.6497498]
[1764642217799,0.82,128.17,128.14,3.9597498]
[1764642217998,0.82,128.17,128.11,16.308864]
[1764642218186,3.9597498,128.15,128.11,16.308864]
[1764642218388,8.66,128.14,128.11,24.11452361]
[1764642218592,8.66,128.14,128.12,0.69]
[1764642218803,9.38,128.15,128.12,0.69]
[1764642219006,9.38,128.15,128.11,47.58875315]
[1764642219209,0.72,128.14,128.11,48.27875315]
[1764642219396,9.38,128.14,128.11,48.27875315]
[1764642219795,9.38,128.14,128.11,31.96988915]
[1764642220020,9.38,128.14,128.11,31.27988915]
[1764642220021,8.66,128.14,128.11,31.27988915]
[1764642220195,4.6797498,128.13,128.11,7.80565961]
[1764642220390,4.6797498,128.13,128.09,27.32424196]
[1764642220584,0.72,128.12,128.09,28.01424196]
[1764642220786,0.72,128.13,128.1,0.69]
[1764642221084,0.72,128.13,128.09,31.97399176]
[1764642221385,0.72,128.13,128.09,28.01424196]
[1764642221610,0.72,128.13,128.1,0.7]
[1764642221810,0.66,128.13,128.1,3.9597498]
[1764642221985,0.66,128.13,128.09,31.98399176]
[1764642222307,4.6197498,128.13,128.09,28.02424196]
[1764642222601,4.6197498,128.13,128.09,27.32424196]
[1764642222813,0.66,128.12,128.09,28.02424196]
[1764642223903,21.0839894,128.14,128.1,0.7]
[1764642224207,0.66,128.13,128.1,0.7]
[1764642224721,0.66,128.13,128.08,7.80762023]
[1764642224886,3.9597498,128.12,128.08,7.80762023]
[1764642225087,12.6197498,128.11,128.08,7.80762023]
[1764642225493,0.66,128.1,128.08,7.80762023]
[1764642226513,4.6197498,128.1,128.06,7.8088396]
[1764642226693,3.9597498,128.09,128.06,7.8088396]
[1764642227014,8.66,128.08,128.06,8.5088396]
[1764642227190,9.32,128.08,128.06,7.8088396]
[1764642227592,8.66,128.08,128.06,8.5088396]
[1764642227807,9.32,128.08,128.06,7.8088396]
[1764642228001,9.32,128.08,128.05,28.0327195]
[1764642228507,9.32,128.08,128.05,7.80944943]
[1764642228704,0.66,128.07,128.05,7.80944943]
[1764642230915,8.66,128.07,128.05,12.46919923]
[1764642231113,8.66,128.07,128.05,8.50944943]
[1764642232186,8.66,128.07,128.05,7.80944943]
[1764642232390,9.32,128.07,128.05,7.80944943]
[1764642232914,9.32,128.07,128.04,28.03448374]
[1764642233715,3.9597498,128.05,128.01,7.81173119]
[1764642233919,3.9597498,128.03,128.0,0.2]
[1764642234212,3.9597498,128.02,128.0,0.2]
[1764642234421,8.66,128.01,128.0,0.2]
[1764642234791,8.66,128.01,128.0,8.0125]
[1764642235189,9.32,128.01,128.0,8.0125]
[1764642235416,9.32,128.01,128.0,0.2]
[1764642235943,9.32,128.01,128.0,8.0125]
[1764642236509,8.66,128.01,128.0,8.0125]
[1764642237123,9.32,128.01,128.0,8.0125]
[1764642239117,8.66,128.02,128.0,8.7125]
[1764642239421,0.66,128.05,128.01,0.7]
[1764642239605,8.66,128.04,128.01,0.7]
[1764642240401,9.32,128.04,128.01,0.7]
[1764642240590,8.66,128.04,128.01,3.23574862]
[1764642240811,8.66,128.04,128.02,2.53574862]
[1764642241114,8.66,128.04,128.03,7.81066937]
[1764642241613,11.85574862,128.04,128.03,7.81066937]
[1764642242097,9.32,128.04,128.03,7.81066937]
[1764642243209,9.2419116,128.04,128.01,27.34011788]
[1764642243804,8.5819116,128.04,128.01,27.34011788]
[1764642244026,9.2419116,128.04,128.01,28.04011788]
[1764642245395,0.66,128.07,128.03,2.53574862]
[1764642245701,8.66,128.08,128.05,2.53574862]
[1764642246312,8.66,128.08,128.06,3.23574862]
[1764642246510,8.66,128.08,128.07,2.53574862]
[1764642246823,8.66,128.08,128.06,3.23574862]
[1764642247417,8.66,128.08,128.07,7.80822987]
[1764642248001,9.32,128.08,128.07,7.80822987]
[1764642248223,8.66,128.08,128.07,7.80822987]
[1764642249312,8.66,128.08,128.06,7.8088396]
[1764642251316,3.25574862,128.13,128.08,7.80762023]
[1764642251519,8.66,128.12,128.09,2.53574862]
[1764642251727,8.66,128.12,128.09,3.23574862]
[1764642252029,9.38,128.12,128.09,3.23574862]
[1764642252599,0.72,128.14,128.1,3.23574862]
[1764642252927,8.66,128.13,128.1,3.23574862]
[1764642253224,8.66,128.13,128.1,0.7]
[1764642253404,8.66,128.13,128.11,7.80579189]
[1764642254031,9.38,128.13,128.11,7.80579189]
[1764642254222,8.66,128.13,128.11,7.80579189]
[1764642254529,9.38,128.13,128.11,7.80579189]
[1764642255323,9.38,128.13,128.08,35.8271751]
[1764642255324,0.72,128.12,128.08,35.8271751]
[1764642255529,9.38,128.13,128.09,8.50675333]
[1764642255827,9.38,128.13,128.09,11.04250195]
[1764642256033,9.38,128.13,128.1,0.7]
[1764642256530,8.66,128.13,128.1,3.23574862]
[1764642256715,8.66,128.15,128.12,2.53574862]
[1764642257025,8.66,128.15,128.11,0.7]
[1764642257231,9.38,128.15,128.11,3.23574862]
[1764642257426,9.38,128.15,128.12,7.80518264]
[1764642257624,9.38,128.15,128.12,8.50518264]
[1764642257828,8.66,128.15,128.12,8.50518264]
[1764642258029,9.38,128.15,128.12,8.50518264]
[1764642259814,0.1,128.17,128.13,3.23574862]
[1764642260022,8.76,128.17,128.13,3.23574862]
[1764642260219,9.48,128.17,128.14,0.7]
[1764642262445,9.48,128.17,128.14,8.5033667]
[1764642266749,8.76,128.17,128.15,0.7]
[1764642267648,8.76,128.17,128.15,3.23574862]
[1764642267825,8.76,128.17,128.16,7.80274656]
[1764642268635,8.76,128.17,128.16,8.50274656]
[1764642269033,0.1,128.17,128.16,11.03849518]
[1764642269231,0.1,128.17,128.16,8.50274656]
[1764642269449,0.1,128.17,128.16,11.03849518]
[1764642272552,0.1,128.17,128.16,8.50274656]
[1764642272848,0.82,128.17,128.15,7.80333921]
[1764642273054,0.1,128.17,128.14,28.01387544]
[1764642273254,0.82,128.17,128.14,28.01387544]
[1764642273477,11.19574862,128.16,128.13,7.80435486]
[1764642273757,2.53574862,128.15,128.11,7.80579189]
[1764642274053,3.25574862,128.15,128.11,8.50579189]
[1764642274228,0.72,128.14,128.11,8.50579189]